fUST/lending_fUST_20240218
["ID","MTS","AMOUNT","RATE_DAILY","PERIOD"]
[314357287,1708224643650,-581.53,0.00030136,2]
[314357288,1708224643659,-500.0,0.00030136,2]
[314357289,1708224643668,-500.0,0.00030136,2]
[314357291,1708224643677,-513.33,0.00030136,2]
[314357292,1708224643687,-883.67,0.00030136,2]
[314357293,1708224643696,-560.92,0.00030136,2]
[314357294,1708224643705,-599.47,0.00030136,2]
[314357295,1708224643714,-155.0,0.00030137,2]
[314357296,1708224643723,-484.918302,0.00030166,2]
[314357297,1708224643733,-359.857771,0.00030166,2]
[314357298,1708224643742,-392.668863,0.00030166,2]
[314357299,1708224643751,-216.902041,0.00030166,2]
[314357300,1708224643760,-300.0,0.000303,2]
[314357301,1708224643769,-368.99873029,0.0003031,2]
[314357302,1708224643778,-707.36,0.0003041,2]
[314357303,1708224643787,-686.95,0.0003041,2]
[314357304,1708224643796,-664.33,0.0003041,2]
[314357305,1708224643805,-500.0,0.0003041,2]
[314357306,1708224643815,-500.0,0.0003041,2]
[314357307,1708224643824,-500.0,0.0003041,2]
[314357308,1708224643833,-500.0,0.0003041,2]
[314357309,1708224643842,-5114.65,0.0003041,2]
[314357310,1708224643851,-751.25,0.0003041,2]
[314357311,1708224643860,-2011.35,0.0003041,2]
[314357312,1708224643937,-642.1,0.0003041,2]
[314357313,1708224643948,-989.02,0.0003041,2]
[314357314,1708224643959,-500.0,0.0003041,2]
[314357315,1708224643969,-4860.74,0.0003041,2]
[314357316,1708224643979,-5450.29,0.0003041,2]
[314357317,1708224643989,-545.08,0.0003041,2]
[314357318,1708224643998,-3012.17,0.0003041,2]
[314357319,1708224644010,-920.36,0.0003041,2]
[314357320,1708224644020,-3200.39,0.0003041,2]
[314357321,1708224644029,-3376.31,0.0003041,2]
[314357322,1708224644038,-645.54,0.0003041,2]
[314357323,1708224644047,-1059.99,0.0003041,2]
[314357324,1708224644057,-1060.15,0.0003041,2]
[314357325,1708224644067,-500.0,0.0003041,2]
[314357326,1708224644076,-581.53,0.0003041,2]
[314357327,1708224644085,-500.0,0.0003041,2]
[314357328,1708224644095,-500.0,0.0003041,2]
[314357329,1708224644105,-513.33,0.0003041,2]
[314357330,1708224644114,-883.67,0.0003041,2]
[314357331,1708224644123,-560.92,0.0003041,2]
[314357332,1708224644134,-599.47,0.0003041,2]
[314357333,1708224644143,-368.99873027,0.00030466,2]
[314357334,1708224644154,-2000.0,0.00030472,2]
[314357335,1708224644164,-2000.0,0.00030472,2]
[314357336,1708224644174,-177.039654,0.00030529,2]
[314357337,1708224644183,-484.918302,0.00030529,2]
[314357338,1708224644193,-359.857771,0.00030529,2]
[314357339,1708224644201,-392.668863,0.00030529,2]
[314357340,1708224644210,-216.902041,0.00030529,2]
[314357341,1708224644220,-510.37883326,0.00030619,2]
[314357342,1708224644229,-368.99873027,0.00030622,2]
[314357343,1708224644239,-707.36,0.00030684,2]
[314357344,1708224644248,-686.95,0.00030684,2]
[314357345,1708224644257,-664.33,0.00030684,2]
[314357346,1708224644267,-500.0,0.00030684,2]
[314357347,1708224644276,-500.0,0.00030684,2]
[314357348,1708224644285,-500.0,0.00030684,2]
[314357349,1708224644294,-500.0,0.00030684,2]
[314357350,1708224644307,-5114.65,0.00030684,2]
[314357351,1708224644316,-751.25,0.00030684,2]
[314357352,1708224644325,-2011.35,0.00030684,2]
[314357353,1708224644334,-642.1,0.00030684,2]
[314357354,1708224644343,-989.02,0.00030684,2]
[314357355,1708224644352,-500.0,0.00030684,2]
[314357356,1708224644361,-4860.74,0.00030684,2]
[314357357,1708224644369,-5450.29,0.00030684,2]
[314357358,1708224644378,-545.08,0.00030684,2]
[314357359,1708224644387,-3012.17,0.00030684,2]
[314357360,1708224644396,-920.36,0.00030684,2]
[314357361,1708224644407,-3200.39,0.00030684,2]
[314357362,1708224644416,-3376.31,0.00030684,2]
[314357363,1708224644425,-645.54,0.00030684,2]
[314357364,1708224644434,-1059.99,0.00030684,2]
[314357365,1708224644443,-1060.15,0.00030684,2]
[314357366,1708224644452,-500.0,0.00030684,2]
[314357367,1708224644461,-581.53,0.00030684,2]
[314357368,1708224644470,-500.0,0.00030684,2]
[314357369,1708224644479,-500.0,0.00030684,2]
[314357370,1708224644488,-513.33,0.00030684,2]
[314357371,1708224644497,-883.67,0.00030684,2]
[314357372,1708224644506,-560.92,0.00030684,2]
[314357373,1708224644515,-599.47,0.00030684,2]
[314357374,1708224644524,-394.965419,0.0003071,2]
[314357375,1708224644533,-7273.16022278,0.00030773,2]
[314357376,1708224644608,-2329.14123897,0.00030773,2]
[314357377,1708224644651,-0.01198233,0.00030773,2]
[314357416,1708224646676,-342.36884967,0.00027397,2]
[314357419,1708225767096,-3285.09876583,0.0002,2]
[314357445,1708225831862,-261.53905327,0.00019997,2]
[314357446,1708225831872,-273.55227487,0.00019998,2]
[314357447,1708225831882,-3558.93603315,0.00019999,2]
[314357448,1708225831891,-6208.90123417,0.0002,2]
[314357449,1708225831901,-2731.59367328,0.00021,2]
[314357450,1708225831911,-501.04120554,0.0002166,3]
[314357451,1708225831919,-184.273521,0.0002296,2]
[314357452,1708225831929,-178.04235454,0.00025782,2]
[314357453,1708225831938,-21561.37017971,0.00025882,2]
[314357454,1708225831947,-6468.41105392,0.00025882,2]
[314357455,1708225831956,-1699.44986952,0.00025882,2]
[314357456,1708225831965,-178.04235451,0.00027262,3]
[314357457,1708225831974,-751.34868967,0.00027297,2]
[314357458,1708225831985,-1710.61,0.00027387,3]
[314357459,1708225831994,-1614.87,0.00027387,3]
[314357460,1708225832003,-405.92914822,0.00027397,2]
[314357461,1708225832013,-551.55464271,0.00027397,2]
[314357462,1708225832022,-500.0,0.00027397,2]
[314357463,1708225832032,-500.0,0.00027397,2]
[314357464,1708225832040,-500.0,0.00027397,2]
[314357465,1708225832049,-500.0,0.00027397,2]
[314357466,1708225832059,-500.0,0.00027397,2]
[314357467,1708225832067,-500.0,0.00027397,2]
[314357468,1708225832076,-500.0,0.00027397,2]
[314357469,1708225832086,-500.0,0.00027397,2]
[314357470,1708225832094,-500.0,0.00027397,2]
[314357471,1708225832103,-157.63115033,0.00027397,2]
[314357472,1708225832113,-500.0,0.00027397,2]
[314357473,1708225832122,-500.0,0.00027397,2]
[314357474,1708225832131,-500.0,0.00027397,2]
[314357475,1708225832140,-500.0,0.00027397,2]
[314357476,1708225832150,-583.68019355,0.00027397,2]
[314357477,1708225832159,-500.0,0.00027397,2]
[314357478,1708225832168,-565.86,0.00027397,2]
[314357479,1708225832177,-500.0,0.00027397,2]
[314357480,1708225832187,-500.0,0.00027397,2]
[314357481,1708225832195,-604.18,0.00027397,2]
[314357482,1708225832205,-504.67487428,0.00027397,2]
[314357483,1708225832214,-500.0,0.00027397,2]
[314357484,1708225832223,-562.38075067,0.00027397,2]
[314357485,1708225832235,-500.0,0.00027397,2]
[314357486,1708225832244,-534.99074956,0.00027397,2]
[314357487,1708225832253,-507.03918604,0.00027397,2]
[314357488,1708225832262,-500.0,0.00027397,2]
[314357489,1708225832271,-270.22,0.00027397,2]
[314357490,1708225832281,-500.0,0.00027397,2]
[314357491,1708225832291,-500.0,0.00027397,2]
[314357492,1708225832300,-1592.32,0.00027397,2]
[314357493,1708225832309,-556.69764607,0.00027397,2]
[314357494,1708225832324,-255.16235393,0.00027397,2]
[314357495,1708225832333,-752.19773673,0.00027397,2]
[314357502,1708225839706,-829.78377352,0.00025882,2]
[314357503,1708225839715,-3903.44226327,0.00027397,2]
[314357504,1708225839724,-500.0,0.00027397,2]
[314357505,1708225839733,-3471.13935867,0.00027397,2]
[314357629,1708227032038,-261.53905327,0.00022545,2]
[314357630,1708227032048,-273.55227487,0.00022546,2]
[314357631,1708227032058,-3558.93603315,0.00022547,2]
[314357633,1708227032067,-905.97263871,0.00022548,2]
[314357654,1708227038089,-2011.92208739,0.00022548,2]
[314357656,1708227038099,-24900.0,0.00023065,2]
[314357658,1708227038108,-178.04235451,0.00023292,2]
[314357660,1708227038117,-1499.97527286,0.00023392,2]
[314357663,1708227038127,-220.3825169,0.00023399,2]
[314357664,1708227038137,-250.0,0.00023399,2]
[314357666,1708227038146,-3285.0874951,0.00023665,2]
[314357668,1708227038155,-167.736002,0.00024711,2]
[314357682,1708227038164,-1146.14609055,0.00025297,2]
[314357684,1708227038278,-1316.02,0.00025872,3]
[314357686,1708227038288,-2509.56,0.00025872,3]
[314357688,1708227038297,-2091.3,0.00025872,3]
[314357690,1708227038306,-1742.75,0.00025872,3]
[314357692,1708227038315,-6911.75251855,0.00025882,2]
[314357694,1708227038323,-71508.94161044,0.00025882,2]
[314357696,1708227038333,-2402.99220848,0.00025882,2]
[314357698,1708227038342,-1940.52331617,0.00025882,2]
[314357700,1708227038351,-190.23698773,0.00027069,2]
[314357702,1708227038360,-500.0,0.00027295,2]
[314357704,1708227038369,-500.0,0.00027295,2]
[314357706,1708227038378,-529.57672631,0.00027295,2]
[314357708,1708227038387,-238.42482762,0.00027295,2]
[314357710,1708227038396,-500.0,0.00027295,2]
[314357712,1708227038406,-295.98659606,0.00027295,2]
[314357714,1708227038415,-500.0,0.00027295,2]
[314357716,1708227038424,-629.60214496,0.00027295,2]
[314357718,1708227038434,-49468.03973283,0.00027297,2]
[314357720,1708227038443,-502.00295055,0.00027397,2]
[314357721,1708227038452,-502.19323529,0.00027397,2]
[314357723,1708227038462,-502.19154516,0.00027397,2]
[314357725,1708227038471,-500.0,0.00027397,2]
[314357727,1708227038481,-503.17924915,0.00027397,2]
[314357729,1708227038490,-500.0,0.00027397,2]
[314357731,1708227038499,-155.17985953,0.00027397,2]
[314357733,1708227038508,-189.09372284,0.00027397,2]
[314357734,1708227038518,-500.0,0.00027397,2]
[314357735,1708227038527,-500.0,0.00027397,2]
[314357736,1708227038536,-500.0,0.00027397,2]
[314357737,1708227038545,-500.0,0.00027397,2]
[314357738,1708227038554,-1000.0,0.00027397,2]
[314357739,1708227038563,-500.0,0.00027397,2]
[314357740,1708227038572,-500.0,0.00027397,2]
[314357741,1708227038581,-500.0,0.00027397,2]
[314357742,1708227038594,-866.45,0.00027397,2]
[314357743,1708227038603,-500.0,0.00027397,2]
[314357744,1708227038613,-500.0,0.00027397,2]
[314357745,1708227038622,-500.0,0.00027397,2]
[314357746,1708227038631,-714.02,0.00027397,2]
[314357747,1708227038641,-500.0,0.00027397,2]
[314357748,1708227038651,-745.09,0.00027397,2]
[314357749,1708227038661,-155.0,0.00027397,2]
[314357750,1708227038670,-500.0,0.00027397,2]
[314357751,1708227038680,-500.0,0.00027397,2]
[314357752,1708227038690,-500.0,0.00027397,2]
[314357753,1708227038699,-500.0,0.00027397,2]
[314357754,1708227038707,-500.0,0.00027397,2]
[314357755,1708227038717,-500.0,0.00027397,2]
[314357756,1708227038726,-500.0,0.00027397,2]
[314357757,1708227038735,-500.0,0.00027397,2]
[314357758,1708227038744,-883.67,0.00027397,2]
[314357759,1708227038753,-500.0,0.00027397,2]
[314357760,1708227038762,-506.44,0.00027397,2]
[314357761,1708227038772,-500.0,0.00027397,2]
[314357762,1708227038781,-500.0,0.00027397,2]
[314357763,1708227038790,-500.0,0.00027397,2]
[314357764,1708227038799,-1945.0,0.00027397,2]
[314357765,1708227038808,-847.68,0.00027397,2]
[314357766,1708227038817,-5486.52,0.00027397,2]
[314357767,1708227038826,-4716.11,0.00027397,2]
[314357768,1708227038836,-500.0,0.00027397,2]
[314357769,1708227038845,-500.0,0.00027397,2]
[314357770,1708227038854,-3200.39,0.00027397,2]
[314357771,1708227038863,-500.0,0.00027397,2]
[314357772,1708227038873,-500.0,0.00027397,2]
[314357773,1708227038881,-500.0,0.00027397,2]
[314357774,1708227038891,-500.0,0.00027397,2]
[314357775,1708227038900,-500.0,0.00027397,2]
[314357776,1708227038909,-581.53,0.00027397,2]
[314357777,1708227038917,-500.0,0.00027397,2]
[314357778,1708227038926,-500.0,0.00027397,2]
[314357779,1708227038935,-500.0,0.00027397,2]
[314357780,1708227038946,-500.0,0.00027397,2]
[314357781,1708227038955,-920.36,0.00027397,2]
[314357782,1708227038964,-5450.29,0.00027397,2]
[314357783,1708227038973,-3012.17,0.00027397,2]
[314357784,1708227038983,-3376.31,0.00027397,2]
[314357785,1708227038992,-989.02,0.00027397,2]
[314357786,1708227039000,-1059.99,0.00027397,2]
[314357787,1708227039009,-645.54,0.00027397,2]
[314357788,1708227039018,-500.0,0.00027397,2]
[314357789,1708227039027,-545.08,0.00027397,2]
[314357790,1708227039037,-500.0,0.00027397,2]
[314357791,1708227039046,-599.47,0.00027397,2]
[314357792,1708227039058,-513.33,0.00027397,2]
[314357793,1708227039067,-1810.15,0.00027397,2]
[314357794,1708227039077,-507.53183783,0.00027397,2]
[314357795,1708227039086,-500.0,0.00027397,2]
[314357796,1708227039095,-560.92,0.00027397,2]
[314357797,1708227039104,-500.0,0.00027397,2]
[314357798,1708227039114,-691.49,0.00027397,2]
[314357799,1708227039124,-215.95994553,0.00027435,2]
[314357800,1708227039133,-229.83802033,0.00027435,2]
[314357801,1708227039142,-304.35518686,0.00027435,2]
[314357802,1708227039151,-178.04235451,0.0002751,3]
[314357803,1708227039160,-410.34813149,0.00027671,2]
[314357804,1708227039169,-500.0,0.00027671,2]
[314357805,1708227039179,-500.0,0.00027671,2]
[314357806,1708227039188,-500.0,0.00027671,2]
[314357807,1708227039197,-500.0,0.00027671,2]
[314357808,1708227039206,-500.0,0.00027671,2]
[314357809,1708227039215,-866.45,0.00027671,2]
[314357810,1708227039224,-500.0,0.00027671,2]
[314357811,1708227039233,-714.02,0.00027671,2]
[314357812,1708227039242,-745.09,0.00027671,2]
[314357813,1708227039251,-500.0,0.00027671,2]
[314357814,1708227039260,-500.0,0.00027671,2]
[314357815,1708227039269,-500.0,0.00027671,2]
[314357816,1708227039278,-500.0,0.00027671,2]
[314357817,1708227039287,-487.16656245,0.00027671,2]
[314357818,1708227039297,-225.96099461,0.00027671,2]
[314357819,1708227039306,-883.67,0.00027671,2]
[314357820,1708227039316,-500.0,0.00027671,2]
[314357821,1708227039326,-506.44,0.00027671,2]
[314357822,1708227039335,-500.0,0.00027671,2]
[314357823,1708227039344,-500.0,0.00027671,2]
[314357824,1708227039353,-1945.0,0.00027671,2]
[314357825,1708227039362,-847.68,0.00027671,2]
[314357826,1708227039371,-5486.52,0.00027671,2]
[314357827,1708227039380,-4716.11,0.00027671,2]
[314357828,1708227039389,-3200.39,0.00027671,2]
[314357829,1708227039398,-500.0,0.00027671,2]
[314357830,1708227039407,-595.13924849,0.00027671,2]
[314357831,1708227039416,-500.0,0.00027671,2]
[314357832,1708227039425,-500.0,0.00027671,2]
[314357833,1708227039434,-581.53,0.00027671,2]
[314357834,1708227039444,-500.0,0.00027671,2]
[314357835,1708227039453,-169.26,0.00027671,2]
[314357836,1708227039462,-500.0,0.00027671,2]
[314357837,1708227039471,-500.0,0.00027671,2]
[314357838,1708227039482,-920.36,0.00027671,2]
[314357839,1708227039490,-5450.29,0.00027671,2]
[314357840,1708227039499,-3012.17,0.00027671,2]
[314357841,1708227039508,-3376.31,0.00027671,2]
[314357842,1708227039517,-989.02,0.00027671,2]
[314357844,1708227039526,-1059.99,0.00027671,2]
[314357846,1708227039535,-645.54,0.00027671,2]
[314357847,1708227039545,-500.0,0.00027671,2]
[314357848,1708227039554,-545.08,0.00027671,2]
[314357849,1708227039563,-500.0,0.00027671,2]
[314357850,1708227039573,-599.47,0.00027671,2]
[314357851,1708227039582,-513.33,0.00027671,2]
[314357852,1708227039595,-1810.15,0.00027671,2]
[314357853,1708227039604,-500.0,0.00027671,2]
[314357854,1708227039613,-560.92,0.00027671,2]
[314357855,1708227039623,-500.0,0.00027671,2]
[314357856,1708227039633,-691.49,0.00027671,2]
[314357857,1708227039642,-500.0,0.00027945,2]
[314357858,1708227039651,-500.0,0.00027945,2]
[314357859,1708227039660,-500.0,0.00027945,2]
[314357860,1708227039671,-500.0,0.00027945,2]
[314357861,1708227039682,-376.38041285,0.00027945,2]
[314357862,1708227039691,-866.45,0.00027945,2]
[314357863,1708227039700,-500.0,0.00027945,2]
[314357864,1708227039709,-714.02,0.00027945,2]
[314357865,1708227039718,-745.09,0.00027945,2]
[314357866,1708227039728,-500.0,0.00027945,2]
[314357867,1708227039738,-500.0,0.00027945,2]
[314357868,1708227039747,-500.0,0.00027945,2]
[314357869,1708227039756,-500.0,0.00027945,2]
[314357870,1708227039765,-883.67,0.00027945,2]
[314357871,1708227039776,-500.0,0.00027945,2]
[314357872,1708227039786,-506.44,0.00027945,2]
[314357873,1708227039796,-500.0,0.00027945,2]
[314357874,1708227039805,-195.56796483,0.00027945,2]
[314357875,1708227039815,-1945.0,0.00027945,2]
[314357876,1708227039825,-847.68,0.00027945,2]
[314357877,1708227039835,-5486.52,0.00027945,2]
[314357878,1708227039844,-4716.11,0.00027945,2]
[314357879,1708227039854,-3200.39,0.00027945,2]
[314357880,1708227039863,-500.0,0.00027945,2]
[314357881,1708227039872,-500.0,0.00027945,2]
[314357882,1708227039881,-500.0,0.00027945,2]
[314357883,1708227039890,-581.53,0.00027945,2]
[314357884,1708227039899,-500.0,0.00027945,2]
[314357885,1708227039908,-500.0,0.00027945,2]
[314357886,1708227039917,-500.0,0.00027945,2]
[314357887,1708227039926,-920.36,0.00027945,2]
[314357888,1708227039936,-5450.29,0.00027945,2]
[314357889,1708227039947,-3012.17,0.00027945,2]
[314357890,1708227039956,-3376.31,0.00027945,2]
[314357891,1708227039964,-989.02,0.00027945,2]
[314357892,1708227039974,-1059.99,0.00027945,2]
[314357893,1708227039983,-645.54,0.00027945,2]
[314357894,1708227039992,-500.0,0.00027945,2]
[314357895,1708227040002,-545.08,0.00027945,2]
[314357896,1708227040011,-500.0,0.00027945,2]
[314357897,1708227040019,-599.47,0.00027945,2]
[314357898,1708227040029,-513.33,0.00027945,2]
[314357899,1708227040038,-1810.15,0.00027945,2]
[314357900,1708227040048,-500.0,0.00027945,2]
[314357901,1708227040057,-560.92,0.00027945,2]
[314357902,1708227040066,-500.0,0.00027945,2]
[314357903,1708227040075,-691.49,0.00027945,2]
[314357904,1708227040084,-531.59636198,0.00028,7]
[314357905,1708227040093,-155.0294556,0.00028,2]
[314357906,1708227040102,-330.64495168,0.00028108,3]
[314357907,1708227040111,-500.0,0.00028219,2]
[314357908,1708227040120,-500.0,0.00028219,2]
[314357909,1708227040129,-500.0,0.00028219,2]
[314357910,1708227040138,-500.0,0.00028219,2]
[314357911,1708227040148,-866.45,0.00028219,2]
[314357912,1708227040157,-500.0,0.00028219,2]
[314357913,1708227040166,-714.02,0.00028219,2]
[314357914,1708227040175,-745.09,0.00028219,2]
[314357915,1708227040184,-500.0,0.00028219,2]
[314357916,1708227040193,-500.0,0.00028219,2]
[314357917,1708227040202,-500.0,0.00028219,2]
[314357918,1708227040211,-500.0,0.00028219,2]
[314357919,1708227040220,-883.67,0.00028219,2]
[314357920,1708227040229,-280.96545864,0.00028219,2]
[314357921,1708227040238,-506.44,0.00028219,2]
[314357922,1708227040247,-500.0,0.00028219,2]
[314357923,1708227040256,-1945.0,0.00028219,2]
[314357924,1708227040265,-847.68,0.00028219,2]
[314357925,1708227040275,-5486.52,0.00028219,2]
[314357926,1708227040284,-4716.11,0.00028219,2]
[314357927,1708227040294,-3200.39,0.00028219,2]
[314357928,1708227040302,-500.0,0.00028219,2]
[314357929,1708227040312,-204.70364073,0.00028219,2]
[314357931,1708227040321,-500.0,0.00028219,2]
[314357932,1708227040330,-581.53,0.00028219,2]
[314357933,1708227040339,-500.0,0.00028219,2]
[314357934,1708227040348,-500.0,0.00028219,2]
[314357935,1708227040358,-500.0,0.00028219,2]
[314357936,1708227040367,-920.36,0.00028219,2]
[314357937,1708227040376,-5450.29,0.00028219,2]
[314357938,1708227040385,-3012.17,0.00028219,2]
[314357939,1708227040394,-3376.31,0.00028219,2]
[314357940,1708227040403,-989.02,0.00028219,2]
[314357941,1708227040412,-1059.99,0.00028219,2]
[314357942,1708227040421,-645.54,0.00028219,2]
[314357943,1708227040505,-500.0,0.00028219,2]
[314357944,1708227040515,-545.08,0.00028219,2]
[314357945,1708227040524,-500.0,0.00028219,2]
[314357946,1708227040533,-599.47,0.00028219,2]
[314357947,1708227040542,-513.33,0.00028219,2]
[314357948,1708227040551,-1810.15,0.00028219,2]
[314357949,1708227040560,-500.0,0.00028219,2]
[314357950,1708227040570,-560.92,0.00028219,2]
[314357951,1708227040579,-500.0,0.00028219,2]
[314357952,1708227040590,-691.49,0.00028219,2]
[314357953,1708227040600,-500.0,0.00028493,2]
[314357954,1708227040609,-526.12456327,0.00028493,2]
[314357955,1708227040619,-613.48340881,0.00028493,2]
[314357956,1708227040628,-500.0,0.00028493,2]
[314357957,1708227040637,-866.45,0.00028493,2]
[314357958,1708227040647,-288.99348345,0.00028493,2]
[314357959,1708227040656,-714.02,0.00028493,2]
[314357960,1708227040666,-745.09,0.00028493,2]
[314357961,1708227040675,-500.0,0.00028493,2]
[314357962,1708227040685,-500.0,0.00028493,2]
[314357963,1708227040694,-500.0,0.00028493,2]
[314357964,1708227040703,-311.29329183,0.00028493,2]
[314357965,1708227040713,-883.67,0.00028493,2]
[314357966,1708227040722,-506.44,0.00028493,2]
[314357967,1708227040734,-419.70147879,0.00028493,2]
[314357968,1708227040744,-1945.0,0.00028493,2]
[314357969,1708227040754,-847.68,0.00028493,2]
[314357970,1708227040763,-5486.52,0.00028493,2]
[314357971,1708227040772,-4716.11,0.00028493,2]
[314357972,1708227040781,-3200.39,0.00028493,2]
[314357973,1708227040791,-500.0,0.00028493,2]
[314357974,1708227040800,-500.0,0.00028493,2]
[314357975,1708227040809,-581.53,0.00028493,2]
[314357976,1708227040818,-500.0,0.00028493,2]
[314357977,1708227040827,-500.0,0.00028493,2]
[314357978,1708227040835,-500.0,0.00028493,2]
[314357979,1708227040845,-920.36,0.00028493,2]
[314357980,1708227040854,-5450.29,0.00028493,2]
[314357981,1708227040863,-3012.17,0.00028493,2]
[314357982,1708227040873,-3376.31,0.00028493,2]
[314357983,1708227040882,-989.02,0.00028493,2]
[314357984,1708227040891,-1059.99,0.00028493,2]
[314357985,1708227040900,-645.54,0.00028493,2]
[314357986,1708227040909,-500.0,0.00028493,2]
[314357987,1708227040919,-545.08,0.00028493,2]
[314357988,1708227040928,-500.0,0.00028493,2]
[314357989,1708227040938,-599.47,0.00028493,2]
[314357990,1708227040946,-513.33,0.00028493,2]
[314357991,1708227040957,-1810.15,0.00028493,2]
[314357992,1708227040966,-500.0,0.00028493,2]
[314357993,1708227040975,-560.92,0.00028493,2]
[314357994,1708227040985,-500.0,0.00028493,2]
[314357995,1708227040994,-691.49,0.00028493,2]
[314357996,1708227041003,-500.0,0.00028767,2]
[314357997,1708227041012,-500.0,0.00028767,2]
[314357998,1708227041021,-866.45,0.00028767,2]
[314357999,1708227041030,-714.02,0.00028767,2]
[314358000,1708227041039,-745.09,0.00028767,2]
[314358001,1708227041048,-155.0,0.00028767,2]
[314358002,1708227041057,-500.0,0.00028767,2]
[314358003,1708227041066,-500.0,0.00028767,2]
[314358004,1708227041075,-500.0,0.00028767,2]
[314358005,1708227041084,-883.67,0.00028767,2]
[314358006,1708227041093,-506.44,0.00028767,2]
[314358007,1708227041102,-1945.0,0.00028767,2]
[314358009,1708227041111,-847.68,0.00028767,2]
[314358011,1708227041122,-5486.52,0.00028767,2]
[314358013,1708227041130,-4716.11,0.00028767,2]
[314358015,1708227041139,-3200.39,0.00028767,2]
[314358016,1708227041148,-500.0,0.00028767,2]
[314358017,1708227041158,-500.0,0.00028767,2]
[314358019,1708227041168,-581.53,0.00028767,2]
[314358020,1708227041177,-500.0,0.00028767,2]
[314358021,1708227041186,-500.0,0.00028767,2]
[314358022,1708227041195,-500.0,0.00028767,2]
[314358023,1708227041204,-920.36,0.00028767,2]
[314358024,1708227041214,-5450.29,0.00028767,2]
[314358026,1708227041223,-3012.17,0.00028767,2]
[314358028,1708227041234,-3376.31,0.00028767,2]
[314358029,1708227041243,-989.02,0.00028767,2]
[314358031,1708227041252,-1059.99,0.00028767,2]
[314358033,1708227041261,-645.54,0.00028767,2]
[314358035,1708227041270,-500.0,0.00028767,2]
[314358036,1708227041279,-545.08,0.00028767,2]
[314358038,1708227041289,-500.0,0.00028767,2]
[314358039,1708227041297,-599.47,0.00028767,2]
[314358040,1708227041306,-513.33,0.00028767,2]
[314358041,1708227041315,-1810.15,0.00028767,2]
[314358042,1708227041324,-500.0,0.00028767,2]
[314358043,1708227041334,-560.92,0.00028767,2]
[314358045,1708227041343,-691.49,0.00028767,2]
[314358047,1708227041352,-281.99355911,0.00029,7]
[314358049,1708227041362,-155.02790502,0.00029038,2]
[314358050,1708227041371,-160.65196591,0.00029041,3]
[314358052,1708227041380,-500.0,0.00029041,2]
[314358053,1708227041389,-500.0,0.00029041,2]
[314358054,1708227041399,-866.45,0.00029041,2]
[314358055,1708227041409,-714.02,0.00029041,2]
[314358056,1708227041418,-745.09,0.00029041,2]
[314358057,1708227041428,-463.77772748,0.00029041,2]
[314358058,1708227041439,-249.91529067,0.00029041,2]
[314358059,1708227041448,-883.67,0.00029041,2]
[314358060,1708227041457,-506.44,0.00029041,2]
[314358061,1708227041466,-1945.0,0.00029041,2]
[314358062,1708227041476,-847.68,0.00029041,2]
[314358063,1708227041485,-5486.52,0.00029041,2]
[314358064,1708227041494,-4716.11,0.00029041,2]
[314358065,1708227041503,-3200.39,0.00029041,2]